[Event "Late-Titled-Tuesday-Blitz-October-24-2023"]
[Site "Chess.com"]
[Date "2023.10.24"]
[Round "2"]
[White "Angry_Twin"]
[Black "dodoucb"]
[Result "1-0"]
[WhiteElo "2941"]
[BlackElo "2605"]
[TimeControl "180+1"]
[EndTime "14:18:17 PDT"]
[Termination "Angry_Twin won by resignation"]

1. e4 {[%clk 0:03:00.9]} 1... c6 {[%clk 0:02:59.6]} 2. Nf3 {[%clk 0:03:01.1]}
2... d5 {[%clk 0:02:59.6]} 3. d3 {[%clk 0:03:01.8]} 3... Bg4 {[%clk 0:02:59.3]}
4. h3 {[%clk 0:03:01.6]} 4... Bxf3 {[%clk 0:02:59.5]} 5. Qxf3 {[%clk 0:03:01.5]}
5... Nf6 {[%clk 0:02:59.5]} 6. e5 {[%clk 0:02:59.2]} 6... Nfd7 {[%clk 0:02:59]}
7. d4 {[%clk 0:02:59.9]} 7... e6 {[%clk 0:02:58]} 8. Bd3 {[%clk 0:02:59.9]} 8...
c5 {[%clk 0:02:57.8]} 9. c3 {[%clk 0:03:00.4]} 9... Nc6 {[%clk 0:02:57.6]} 10.
Be3 {[%clk 0:03:00.9]} 10... Qb6 {[%clk 0:02:57]} 11. b3 {[%clk 0:02:21.1]}
11... cxd4 {[%clk 0:02:45.9]} 12. cxd4 {[%clk 0:02:22]} 12... Bb4+ {[%clk
0:02:45.1]} 13. Kf1 {[%clk 0:02:20.4]} 13... O-O-O {[%clk 0:02:29.6]} 14. a3
{[%clk 0:02:15.3]} 14... Qa5 {[%clk 0:01:13.7]} 15. Qxf7 {[%clk 0:01:54.2]}
15... Bc3 {[%clk 0:01:13.1]} 16. Nxc3 {[%clk 0:01:51.4]} 16... Qxc3 {[%clk
0:01:14]} 17. Rd1 {[%clk 0:01:51.1]} 17... Qxb3 {[%clk 0:01:08.5]} 18. Be2
{[%clk 0:01:51.2]} 18... Rde8 {[%clk 0:01:02.2]} 19. Kg1 {[%clk 0:01:45.7]}
19... Qxa3 {[%clk 0:00:54.5]} 20. Qxg7 {[%clk 0:01:44.2]} 20... Qe7 {[%clk
0:00:50.6]} 21. Qh6 {[%clk 0:01:44]} 21... Rhg8 {[%clk 0:00:47.6]} 22. Kh2
{[%clk 0:01:42.7]} 22... Qg7 {[%clk 0:00:46.2]} 23. Qxg7 {[%clk 0:01:38.1]}
23... Rxg7 {[%clk 0:00:47.1]} 24. f4 {[%clk 0:01:38.4]} 24... Ne7 {[%clk
0:00:35.8]} 25. g4 {[%clk 0:01:38.3]} 25... h5 {[%clk 0:00:35]} 26. Kg2 {[%clk
0:00:55.4]} 26... Reg8 {[%clk 0:00:19.6]} 27. Kf2 {[%clk 0:00:50.4]} 27... h4
{[%clk 0:00:17.2]} 28. Bd3 {[%clk 0:00:49.3]} 28... Rf7 {[%clk 0:00:16.2]} 29.
Ke2 {[%clk 0:00:49.4]} 29... a6 {[%clk 0:00:08.6]} 30. Rdf1 {[%clk 0:00:43.4]}
30... Nc6 {[%clk 0:00:04.2]} 31. f5 {[%clk 0:00:40.9]} 31... exf5 {[%clk
0:00:02.4]} 32. e6 {[%clk 0:00:40.7]} 1-0

[Event "Late-Titled-Tuesday-Blitz-October-24-2023"]
[Site "Chess.com"]
[Date "2023.10.24"]
[Round "2"]
[White "kleinebeer98"]
[Black "aghasiyevkamal"]
[Result "0-1"]
[WhiteElo "2864"]
[BlackElo "2603"]
[TimeControl "180+1"]
[EndTime "14:18:24 PDT"]
[Termination "aghasiyevkamal won by checkmate"]

1. e4 {[%clk 0:03:00.9]} 1... e5 {[%clk 0:02:58.9]} 2. Nf3 {[%clk 0:03:00.2]}
2... Nc6 {[%clk 0:02:58.3]} 3. d4 {[%clk 0:03:00]} 3... exd4 {[%clk 0:02:57.7]}
4. Bc4 {[%clk 0:03:00.8]} 4... Bc5 {[%clk 0:02:56.5]} 5. Ng5 {[%clk 0:03:00.5]}
5... Nh6 {[%clk 0:02:53.5]} 6. Nxf7 {[%clk 0:03:00.7]} 6... Nxf7 {[%clk
0:02:53.6]} 7. Bxf7+ {[%clk 0:03:01.6]} 7... Kxf7 {[%clk 0:02:54.2]} 8. Qh5+
{[%clk 0:03:02.5]} 8... g6 {[%clk 0:02:54.7]} 9. Qxc5 {[%clk 0:03:03.1]} 9... d5
{[%clk 0:02:54.2]} 10. c3 {[%clk 0:03:02.5]} 10... dxe4 {[%clk 0:02:50.6]} 11.
O-O {[%clk 0:03:01.6]} 11... Re8 {[%clk 0:02:50.1]} 12. cxd4 {[%clk 0:02:50.6]}
12... Qxd4 {[%clk 0:02:45.2]} 13. Qg5 {[%clk 0:02:44.2]} 13... Qf6 {[%clk
0:02:32.1]} 14. Qg3 {[%clk 0:02:43.5]} 14... Nd4 {[%clk 0:02:27.8]} 15. Nc3
{[%clk 0:02:41.3]} 15... c6 {[%clk 0:02:27.6]} 16. Bg5 {[%clk 0:02:38.1]} 16...
Qe5 {[%clk 0:02:25.4]} 17. Bf4 {[%clk 0:02:32.5]} 17... Qf6 {[%clk 0:02:19]} 18.
Bg5 {[%clk 0:02:07]} 18... Qe5 {[%clk 0:02:14.4]} 19. Qh4 {[%clk 0:02:07.4]}
19... h5 {[%clk 0:02:08.7]} 20. Rfe1 {[%clk 0:01:57.4]} 20... Bf5 {[%clk
0:01:53.2]} 21. Rad1 {[%clk 0:01:56.4]} 21... b5 {[%clk 0:00:35.3]} 22. Bf4
{[%clk 0:01:53.6]} 22... Qg7 {[%clk 0:00:28.3]} 23. Bh6 {[%clk 0:01:44.1]} 23...
Qe5 {[%clk 0:00:27.4]} 24. h3 {[%clk 0:01:31.7]} 24... b4 {[%clk 0:00:25.7]} 25.
Bf4 {[%clk 0:01:29.3]} 25... Qg7 {[%clk 0:00:22.1]} 26. Na4 {[%clk 0:01:29.6]}
26... Rad8 {[%clk 0:00:20.4]} 27. Nc5 {[%clk 0:01:30.3]} 27... Ne2+ {[%clk
0:00:20.1]} 28. Kh2 {[%clk 0:01:30]} 28... Rxd1 {[%clk 0:00:19.5]} 29. Rxd1
{[%clk 0:01:30]} 29... Nxf4 {[%clk 0:00:18.9]} 30. Qxf4 {[%clk 0:01:29.4]} 30...
Qe5 {[%clk 0:00:19.8]} 31. Qxe5 {[%clk 0:01:30]} 31... Rxe5 {[%clk 0:00:20.4]}
32. Nb7 {[%clk 0:01:30.6]} 32... Rd5 {[%clk 0:00:17.6]} 33. Rc1 {[%clk 0:01:29]}
33... Rd2 {[%clk 0:00:16.1]} 34. Kg3 {[%clk 0:01:21.4]} 34... Rxb2 {[%clk
0:00:13.6]} 35. Nd8+ {[%clk 0:01:20.8]} 35... Kf6 {[%clk 0:00:13.1]} 36. Nxc6
{[%clk 0:01:21.7]} 36... a5 {[%clk 0:00:12.4]} 37. Nxa5 {[%clk 0:01:21.5]} 37...
Rxa2 {[%clk 0:00:12.2]} 38. Rc6+ {[%clk 0:01:21]} 38... Kg7 {[%clk 0:00:11.9]}
39. Rc5 {[%clk 0:01:13.1]} 39... Kh6 {[%clk 0:00:09.2]} 40. Rb5 {[%clk
0:01:10.4]} 40... h4+ {[%clk 0:00:08.9]} 41. Kxh4 {[%clk 0:01:10.3]} 41... Rxf2
{[%clk 0:00:09.2]} 42. g4 {[%clk 0:01:10.8]} 42... Rg2 {[%clk 0:00:07.3]} 43.
Rb6 {[%clk 0:01:05]} 43... e3 {[%clk 0:00:07.4]} 44. Nc4 {[%clk 0:00:58]} 44...
e2 {[%clk 0:00:06.8]} 45. Ne3 {[%clk 0:00:58.1]} 45... e1=Q# {[%clk 0:00:06.7]}
0-1

[Event "Late-Titled-Tuesday-Blitz-October-24-2023"]
[Site "Chess.com"]
[Date "2023.10.24"]
[Round "2"]
[White "Lord_Neezy"]
[Black "esskeettit"]
[Result "0-1"]
[WhiteElo "2209"]
[BlackElo "2494"]
[TimeControl "180+1"]
[EndTime "14:18:26 PDT"]
[Termination "esskeettit won on time"]

1. e4 {[%clk 0:03:00.9]} 1... c5 {[%clk 0:02:59.8]} 2. Nf3 {[%clk 0:02:59.6]}
2... Nc6 {[%clk 0:03:00]} 3. Bb5 {[%clk 0:02:58.4]} 3... g6 {[%clk 0:02:59.3]}
4. Bxc6 {[%clk 0:02:57.3]} 4... dxc6 {[%clk 0:03:00.2]} 5. d3 {[%clk 0:02:50]}
5... Bg7 {[%clk 0:02:59]} 6. O-O {[%clk 0:02:50]} 6... e5 {[%clk 0:02:55.2]} 7.
Be3 {[%clk 0:02:39.5]} 7... Qe7 {[%clk 0:02:51.7]} 8. Nc3 {[%clk 0:02:36.1]}
8... Nf6 {[%clk 0:02:50.7]} 9. h3 {[%clk 0:02:34]} 9... Nd7 {[%clk 0:02:50.1]}
10. Nh2 {[%clk 0:02:19.1]} 10... Nf8 {[%clk 0:02:46.4]} 11. f4 {[%clk
0:02:18.8]} 11... exf4 {[%clk 0:02:44.9]} 12. Bxf4 {[%clk 0:02:19.7]} 12... Ne6
{[%clk 0:02:44.3]} 13. Be3 {[%clk 0:02:16.6]} 13... O-O {[%clk 0:02:36.2]} 14.
Qd2 {[%clk 0:02:15.4]} 14... Nd4 {[%clk 0:02:18.9]} 15. Rf2 {[%clk 0:02:06]}
15... Be6 {[%clk 0:01:43.4]} 16. Bh6 {[%clk 0:01:46]} 16... Rad8 {[%clk
0:01:41.6]} 17. Bg5 {[%clk 0:01:25]} 17... f6 {[%clk 0:01:35.7]} 18. Be3 {[%clk
0:01:14.4]} 18... c4 {[%clk 0:01:25.6]} 19. Nf3 {[%clk 0:00:52.8]} 19... Nxf3+
{[%clk 0:01:08.9]} 20. Rxf3 {[%clk 0:00:48.4]} 20... cxd3 {[%clk 0:01:04.1]} 21.
cxd3 {[%clk 0:00:44]} 21... b6 {[%clk 0:01:04.1]} 22. d4 {[%clk 0:00:36.5]}
22... f5 {[%clk 0:00:47.6]} 23. exf5 {[%clk 0:00:07.8]} 23... Bxf5 {[%clk
0:00:47.4]} 24. Rd1 {[%clk 0:00:06.3]} 24... Rd7 {[%clk 0:00:28.7]} 25. Qf2
{[%clk 0:00:05.2]} 25... Re8 {[%clk 0:00:20.7]} 26. Bf4 {[%clk 0:00:01.9]} 26...
Qb4 {[%clk 0:00:14.7]} 0-1

[Event "Late-Titled-Tuesday-Blitz-October-24-2023"]
[Site "Chess.com"]
[Date "2023.10.24"]
[Round "2"]
[White "yuki_chess123"]
[Black "Kombinator01"]
[Result "0-1"]
[WhiteElo "2111"]
[BlackElo "2442"]
[TimeControl "180+1"]
[EndTime "14:18:27 PDT"]
[Termination "Kombinator01 won on time"]

1. d4 {[%clk 0:02:58.3]} 1... Nf6 {[%clk 0:02:58.6]} 2. c4 {[%clk 0:02:57.7]}
2... c5 {[%clk 0:02:59]} 3. d5 {[%clk 0:02:56.4]} 3... b5 {[%clk 0:02:59.5]} 4.
cxb5 {[%clk 0:02:56.7]} 4... a6 {[%clk 0:02:59.9]} 5. b6 {[%clk 0:02:57.3]} 5...
d6 {[%clk 0:02:54.3]} 6. Nc3 {[%clk 0:02:57.7]} 6... Nbd7 {[%clk 0:02:54.3]} 7.
Nf3 {[%clk 0:02:57.2]} 7... g6 {[%clk 0:02:51.1]} 8. e4 {[%clk 0:02:52.2]} 8...
Bg7 {[%clk 0:02:51.2]} 9. Be2 {[%clk 0:02:51.5]} 9... O-O {[%clk 0:02:51.6]} 10.
a4 {[%clk 0:02:50.3]} 10... Qxb6 {[%clk 0:02:44.5]} 11. a5 {[%clk 0:02:49.9]}
11... Qb4 {[%clk 0:02:38.6]} 12. Ra4 {[%clk 0:02:49.2]} 12... Qb7 {[%clk
0:02:33.1]} 13. O-O {[%clk 0:02:47]} 13... Ng4 {[%clk 0:02:31.2]} 14. Nd2 {[%clk
0:02:43.6]} 14... f5 {[%clk 0:02:15.9]} 15. h3 {[%clk 0:02:23.4]} 15... Ngf6
{[%clk 0:02:11.3]} 16. exf5 {[%clk 0:02:22.8]} 16... gxf5 {[%clk 0:02:12.2]} 17.
Nc4 {[%clk 0:02:19.4]} 17... Ne4 {[%clk 0:02:04.2]} 18. Nxe4 {[%clk 0:02:09.6]}
18... fxe4 {[%clk 0:02:05.1]} 19. Bg4 {[%clk 0:02:09.4]} 19... Nf6 {[%clk
0:02:02.7]} 20. Bxc8 {[%clk 0:02:08.7]} 20... Raxc8 {[%clk 0:01:55.2]} 21. Nb6
{[%clk 0:02:09]} 21... Rb8 {[%clk 0:01:48.2]} 22. Bg5 {[%clk 0:02:09.3]} 22...
Nd7 {[%clk 0:01:35.2]} 23. Nxd7 {[%clk 0:02:03.1]} 23... Qxd7 {[%clk 0:01:36.1]}
24. Rxe4 {[%clk 0:01:55.7]} 24... Rf7 {[%clk 0:01:36.6]} 25. Qe2 {[%clk
0:00:38.9]} 25... Qf5 {[%clk 0:01:25.1]} 26. Rg4 {[%clk 0:00:34.6]} 26... Rxb2
{[%clk 0:01:21.7]} 27. Qe6 {[%clk 0:00:15.2]} 27... h5 {[%clk 0:01:04.8]} 28.
Rg3 {[%clk 0:00:06]} 28... Kf8 {[%clk 0:01:01.3]} 29. Rf3 {[%clk 0:00:02.7]}
29... Qxe6 {[%clk 0:01:00]} 30. dxe6 {[%clk 0:00:01.1]} 30... Rxf3 {[%clk
0:00:58.1]} 31. gxf3 {[%clk 0:00:02]} 31... c4 {[%clk 0:00:57]} 32. f4 {[%clk
0:00:02.4]} 32... c3 {[%clk 0:00:56.6]} 33. f5 {[%clk 0:00:02.7]} 33... Bd4
{[%clk 0:00:56.3]} 34. Kg2 {[%clk 0:00:02.5]} 34... Rb5 {[%clk 0:00:50.3]} 35.
Bh6+ {[%clk 0:00:02.8]} 35... Kg8 {[%clk 0:00:48.5]} 36. Rd1 {[%clk 0:00:02.6]}
36... Bf6 {[%clk 0:00:45]} 37. Rd3 {[%clk 0:00:02.6]} 37... Rxf5 {[%clk
0:00:44]} 38. Rg3+ {[%clk 0:00:02.6]} 38... Kh7 {[%clk 0:00:43.5]} 39. Be3
{[%clk 0:00:02.8]} 39... Rxa5 {[%clk 0:00:41.6]} 0-1

[Event "Late-Titled-Tuesday-Blitz-October-24-2023"]
[Site "Chess.com"]
[Date "2023.10.24"]
[Round "2"]
[White "APOKALIPSA13"]
[Black "colegiodemadrid"]
[Result "1-0"]
[WhiteElo "2222"]
[BlackElo "2469"]
[TimeControl "180+1"]
[EndTime "14:18:33 PDT"]
[Termination "APOKALIPSA13 won by resignation"]

1. e4 {[%clk 0:03:00.9]} 1... c5 {[%clk 0:02:57.5]} 2. Nf3 {[%clk 0:02:59.7]}
2... d6 {[%clk 0:02:58]} 3. d4 {[%clk 0:02:59.9]} 3... cxd4 {[%clk 0:02:58.9]}
4. Nxd4 {[%clk 0:03:00.4]} 4... Nf6 {[%clk 0:02:59.4]} 5. Nc3 {[%clk 0:03:00.7]}
5... a6 {[%clk 0:02:59.9]} 6. Rg1 {[%clk 0:03:00.2]} 6... e5 {[%clk 0:02:58.8]}
7. Nb3 {[%clk 0:03:00]} 7... Be6 {[%clk 0:02:59.3]} 8. g4 {[%clk 0:03:00.1]}
8... d5 {[%clk 0:03:00]} 9. exd5 {[%clk 0:02:59.9]} 9... Nxd5 {[%clk 0:03:00.9]}
10. Nxd5 {[%clk 0:02:56.4]} 10... Qxd5 {[%clk 0:03:01.8]} 11. Qxd5 {[%clk
0:02:55.7]} 11... Bxd5 {[%clk 0:03:02.7]} 12. Bg2 {[%clk 0:02:54.4]} 12... Bxg2
{[%clk 0:02:59.7]} 13. Rxg2 {[%clk 0:02:55.3]} 13... Nc6 {[%clk 0:02:59.7]} 14.
Bd2 {[%clk 0:02:54]} 14... O-O-O {[%clk 0:02:57.9]} 15. O-O-O {[%clk 0:02:50.8]}
15... Be7 {[%clk 0:02:49.6]} 16. f3 {[%clk 0:02:33.6]} 16... f6 {[%clk
0:02:46.9]} 17. Be3 {[%clk 0:02:24.9]} 17... Nb4 {[%clk 0:02:44.6]} 18. a3
{[%clk 0:02:00.3]} 18... Nd5 {[%clk 0:02:42.3]} 19. Bd2 {[%clk 0:01:57]} 19...
b6 {[%clk 0:02:38]} 20. Re2 {[%clk 0:01:54.3]} 20... Kb7 {[%clk 0:02:33.7]} 21.
f4 {[%clk 0:01:52.2]} 21... Bd6 {[%clk 0:02:33.7]} 22. f5 {[%clk 0:01:36.3]}
22... a5 {[%clk 0:02:25.7]} 23. c4 {[%clk 0:01:33.5]} 23... Rc8 {[%clk
0:02:11.5]} 24. Re4 {[%clk 0:01:31.9]} 24... Nc7 {[%clk 0:01:43.9]} 25. Bxa5
{[%clk 0:01:25.1]} 25... bxa5 {[%clk 0:01:33]} 26. Rxd6 {[%clk 0:01:02.7]} 26...
Nb5 {[%clk 0:01:28.1]} 27. Nxa5+ {[%clk 0:00:59.2]} 27... Ka7 {[%clk 0:01:22.9]}
28. Nc6+ {[%clk 0:00:52.5]} 28... Rxc6 {[%clk 0:01:16]} 29. Rxc6 {[%clk
0:00:53.4]} 29... Nd4 {[%clk 0:01:16.1]} 30. Rc7+ {[%clk 0:00:51.9]} 30... Kb6
{[%clk 0:01:16.7]} 31. Rxg7 {[%clk 0:00:50.9]} 31... Rc8 {[%clk 0:01:16.9]} 32.
Rxd4 {[%clk 0:00:47.8]} 32... exd4 {[%clk 0:01:16.4]} 33. b3 {[%clk 0:00:47.6]}
33... Re8 {[%clk 0:01:09.5]} 34. Rxh7 {[%clk 0:00:41.4]} 34... Re2 {[%clk
0:01:03.8]} 35. Rh6 {[%clk 0:00:39.5]} 35... d3 {[%clk 0:01:03.7]} 36. b4 {[%clk
0:00:34.4]} 36... Rc2+ {[%clk 0:01:01.4]} 37. Kd1 {[%clk 0:00:34.1]} 37... Rxc4
{[%clk 0:01:01.9]} 38. Rxf6+ {[%clk 0:00:34.2]} 38... Kb5 {[%clk 0:01:01.8]} 39.
g5 {[%clk 0:00:32.1]} 39... Rg4 {[%clk 0:00:59]} 40. g6 {[%clk 0:00:29.8]} 40...
Kc4 {[%clk 0:00:59.5]} 41. Rc6+ {[%clk 0:00:27.3]} 41... Kd4 {[%clk 0:00:59]}
42. Ke1 {[%clk 0:00:19.7]} 42... Rg2 {[%clk 0:00:52.5]} 43. f6 {[%clk
0:00:19.2]} 43... Rxg6 {[%clk 0:00:50.9]} 44. f7 {[%clk 0:00:19.3]} 44... Rxc6
{[%clk 0:00:45.5]} 45. f8=Q {[%clk 0:00:19]} 45... Rc1+ {[%clk 0:00:46]} 46. Kf2
{[%clk 0:00:16.8]} 46... Rc2+ {[%clk 0:00:46.9]} 47. Kf3 {[%clk 0:00:16.8]} 1-0

[Event "Late-Titled-Tuesday-Blitz-October-24-2023"]
[Site "Chess.com"]
[Date "2023.10.24"]
[Round "2"]
[White "steepedgames"]
[Black "familijatop71"]
[Result "1-0"]
[WhiteElo "2449"]
[BlackElo "2133"]
[TimeControl "180+1"]
[EndTime "14:18:39 PDT"]
[Termination "steepedgames won on time"]

1. d4 {[%clk 0:03:00.9]} 1... Nf6 {[%clk 0:02:59.5]} 2. Bg5 {[%clk 0:02:59.9]}
2... d5 {[%clk 0:02:59.2]} 3. Bxf6 {[%clk 0:02:56.4]} 3... exf6 {[%clk
0:02:58.4]} 4. c4 {[%clk 0:02:57.3]} 4... dxc4 {[%clk 0:02:54.7]} 5. Nc3 {[%clk
0:02:57.8]} 5... c6 {[%clk 0:02:52.7]} 6. a4 {[%clk 0:02:57.1]} 6... Bd6 {[%clk
0:02:51.4]} 7. e3 {[%clk 0:02:55]} 7... f5 {[%clk 0:02:48.8]} 8. Bxc4 {[%clk
0:02:54.1]} 8... Nd7 {[%clk 0:02:42.8]} 9. Nge2 {[%clk 0:02:52.4]} 9... Nf6
{[%clk 0:02:40.5]} 10. g3 {[%clk 0:02:42.1]} 10... Qe7 {[%clk 0:02:19.9]} 11.
Qc2 {[%clk 0:02:39]} 11... g6 {[%clk 0:02:16.6]} 12. Nf4 {[%clk 0:02:31.4]}
12... Ne4 {[%clk 0:01:54.6]} 13. h4 {[%clk 0:02:18.3]} 13... Bxf4 {[%clk
0:01:43.9]} 14. gxf4 {[%clk 0:02:15.1]} 14... h5 {[%clk 0:01:33.5]} 15. Bd3
{[%clk 0:01:54.1]} 15... Nxc3 {[%clk 0:01:12.6]} 16. Qxc3 {[%clk 0:01:55]} 16...
O-O {[%clk 0:01:06.7]} 17. b4 {[%clk 0:01:49.7]} 17... a6 {[%clk 0:01:02]} 18.
a5 {[%clk 0:01:37.9]} 18... Be6 {[%clk 0:01:00.3]} 19. Qc5 {[%clk 0:01:35.6]}
19... Qd7 {[%clk 0:00:50.3]} 20. Qe5 {[%clk 0:01:25.4]} 20... Bd5 {[%clk
0:00:46.2]} 21. Rg1 {[%clk 0:01:23.6]} 21... Kh7 {[%clk 0:00:35.3]} 22. Ke2
{[%clk 0:01:12.7]} 22... Rae8 {[%clk 0:00:32.7]} 23. Qf6 {[%clk 0:01:10.1]}
23... Re6 {[%clk 0:00:25.7]} 24. Qg5 {[%clk 0:01:08.4]} 24... Be4 {[%clk
0:00:16.3]} 25. Bc4 {[%clk 0:01:06.9]} 25... Bd5 {[%clk 0:00:14.7]} 26. Rac1
{[%clk 0:01:06.6]} 26... Bxc4+ {[%clk 0:00:14.7]} 27. Rxc4 {[%clk 0:01:07.5]}
27... Rfe8 {[%clk 0:00:12.3]} 28. Rgc1 {[%clk 0:01:03.1]} 28... Qd5 {[%clk
0:00:11.5]} 29. Kf1 {[%clk 0:00:56.9]} 29... Qh1+ {[%clk 0:00:11]} 30. Ke2
{[%clk 0:00:52.4]} 30... Qh2 {[%clk 0:00:10.1]} 31. Kf3 {[%clk 0:00:46.7]} 31...
Qh3+ {[%clk 0:00:07.1]} 32. Ke2 {[%clk 0:00:39.2]} 32... Rxe3+ {[%clk
0:00:06.8]} 33. fxe3 {[%clk 0:00:39.1]} 33... Qxe3+ {[%clk 0:00:06.4]} 34. Kf1
{[%clk 0:00:38.6]} 34... Qf3+ {[%clk 0:00:04.9]} 35. Kg1 {[%clk 0:00:38.9]}
35... Qe3+ {[%clk 0:00:03.7]} 36. Kh1 {[%clk 0:00:37.8]} 36... Qf3+ {[%clk
0:00:01.8]} 37. Qg2 {[%clk 0:00:36.3]} 37... Qxf4 {[%clk 0:00:02.2]} 38. R4c2
{[%clk 0:00:36]} 38... Qxh4+ {[%clk 0:00:02.2]} 39. Kg1 {[%clk 0:00:34.5]} 39...
Re4 {[%clk 0:00:02.2]} 40. Qh2 {[%clk 0:00:32.6]} 40... Rg4+ {[%clk 0:00:01.6]}
41. Rg2 {[%clk 0:00:32.4]} 1-0

[Event "Late-Titled-Tuesday-Blitz-October-24-2023"]
[Site "Chess.com"]
[Date "2023.10.24"]
[Round "2"]
[White "PapiPapita"]
[Black "vladislavkovalev"]
[Result "0-1"]
[WhiteElo "2575"]
[BlackElo "2869"]
[TimeControl "180+1"]
[EndTime "14:18:40 PDT"]
[Termination "vladislavkovalev won by resignation"]

1. d4 {[%clk 0:03:00.5]} 1... Nf6 {[%clk 0:03:00.5]} 2. Nf3 {[%clk 0:02:59.4]}
2... e6 {[%clk 0:03:01]} 3. Bg5 {[%clk 0:02:59.5]} 3... d5 {[%clk 0:02:57.9]} 4.
Nbd2 {[%clk 0:02:58.7]} 4... c5 {[%clk 0:02:54.8]} 5. c3 {[%clk 0:02:58.4]} 5...
cxd4 {[%clk 0:02:54.4]} 6. cxd4 {[%clk 0:02:59.3]} 6... Nc6 {[%clk 0:02:55.1]}
7. e3 {[%clk 0:02:59.3]} 7... h6 {[%clk 0:02:55.4]} 8. Bh4 {[%clk 0:02:57.3]}
8... Qb6 {[%clk 0:02:54.1]} 9. Qb3 {[%clk 0:02:56.5]} 9... Ne4 {[%clk
0:02:43.5]} 10. Nxe4 {[%clk 0:02:47.3]} 10... dxe4 {[%clk 0:02:44.4]} 11. Nd2
{[%clk 0:02:48]} 11... Bb4 {[%clk 0:02:23]} 12. Kd1 {[%clk 0:02:22.7]} 12...
Nxd4 {[%clk 0:01:33]} 13. exd4 {[%clk 0:02:21.6]} 13... Qxd4 {[%clk 0:01:33.9]}
14. Qe3 {[%clk 0:02:20.5]} 14... Qd5 {[%clk 0:01:14.1]} 15. a3 {[%clk
0:01:55.8]} 15... Bxd2 {[%clk 0:01:09.9]} 16. Qxd2 {[%clk 0:01:44.8]} 16... Qh5+
{[%clk 0:01:10.1]} 17. Ke1 {[%clk 0:01:17.1]} 17... Qxh4 {[%clk 0:01:10.4]} 18.
Bb5+ {[%clk 0:01:17.1]} 18... Ke7 {[%clk 0:01:08.8]} 19. Rd1 {[%clk 0:00:59.8]}
19... Qg5 {[%clk 0:01:01.3]} 20. Qb4+ {[%clk 0:00:56.8]} 20... Kf6 {[%clk
0:01:01.6]} 21. h4 {[%clk 0:00:45.1]} 21... Qxg2 {[%clk 0:00:42]} 22. Qc3+
{[%clk 0:00:44]} 22... e5 {[%clk 0:00:37.3]} 23. Rd6+ {[%clk 0:00:28]} 23... Be6
{[%clk 0:00:36.4]} 24. Rh3 {[%clk 0:00:28.9]} 24... Rac8 {[%clk 0:00:28.8]} 25.
Qe3 {[%clk 0:00:27.3]} 25... Rhd8 {[%clk 0:00:11.5]} 26. Bf1 {[%clk 0:00:19.9]}
26... Qxh3 {[%clk 0:00:03.9]} 27. Rxd8 {[%clk 0:00:16.3]} 27... Qxe3+ {[%clk
0:00:03.4]} 28. fxe3 {[%clk 0:00:17.2]} 28... Rxd8 {[%clk 0:00:04.3]} 0-1

[Event "Late-Titled-Tuesday-Blitz-October-24-2023"]
[Site "Chess.com"]
[Date "2023.10.24"]
[Round "2"]
[White "pasteta13"]
[Black "rychessmaster1"]
[Result "0-1"]
[WhiteElo "2463"]
[BlackElo "2691"]
[TimeControl "180+1"]
[EndTime "14:18:41 PDT"]
[Termination "rychessmaster1 won on time"]

1. e4 {[%clk 0:02:59.2]} 1... c6 {[%clk 0:02:59.7]} 2. Nf3 {[%clk 0:02:58.9]}
2... d5 {[%clk 0:03:00.1]} 3. exd5 {[%clk 0:02:58.8]} 3... cxd5 {[%clk
0:03:00.3]} 4. c4 {[%clk 0:02:59]} 4... Nf6 {[%clk 0:02:55.4]} 5. d4 {[%clk
0:02:57]} 5... g6 {[%clk 0:02:55.2]} 6. Nc3 {[%clk 0:02:56.9]} 6... Bg7 {[%clk
0:02:53.8]} 7. cxd5 {[%clk 0:02:56.9]} 7... Nxd5 {[%clk 0:02:52.1]} 8. Bc4
{[%clk 0:02:43.6]} 8... Nb6 {[%clk 0:02:52]} 9. Bb3 {[%clk 0:02:43.3]} 9... O-O
{[%clk 0:02:51.6]} 10. h3 {[%clk 0:02:43.2]} 10... Nc6 {[%clk 0:02:50.1]} 11.
Be3 {[%clk 0:02:43.2]} 11... Na5 {[%clk 0:02:47.3]} 12. O-O {[%clk 0:02:41.1]}
12... Nxb3 {[%clk 0:02:46]} 13. Qxb3 {[%clk 0:02:05.5]} 13... Be6 {[%clk
0:02:45.8]} 14. d5 {[%clk 0:01:43.4]} 14... Nxd5 {[%clk 0:02:34.5]} 15. Rfd1
{[%clk 0:01:17.1]} 15... Nxe3 {[%clk 0:02:30.6]} 16. Rxd8 {[%clk 0:01:18]} 16...
Bxb3 {[%clk 0:02:30.5]} 17. Rxf8+ {[%clk 0:01:18.7]} 17... Kxf8 {[%clk
0:02:26.1]} 18. axb3 {[%clk 0:01:19.6]} 18... Nc2 {[%clk 0:02:19.6]} 19. Ra4
{[%clk 0:01:16.2]} 19... a6 {[%clk 0:02:11.5]} 20. Kf1 {[%clk 0:01:14.6]} 20...
Rd8 {[%clk 0:02:09.7]} 21. Rc4 {[%clk 0:01:12]} 21... Nd4 {[%clk 0:02:02.9]} 22.
Nxd4 {[%clk 0:01:10.4]} 22... Bxd4 {[%clk 0:02:03.8]} 23. Rc7 {[%clk 0:01:06.4]}
23... b6 {[%clk 0:02:03]} 24. Ke2 {[%clk 0:01:01.2]} 24... h5 {[%clk 0:01:56.7]}
25. g4 {[%clk 0:00:48.1]} 25... h4 {[%clk 0:01:37.2]} 26. f4 {[%clk 0:00:45.5]}
26... Bxc3 {[%clk 0:01:24.7]} 27. bxc3 {[%clk 0:00:44.9]} 27... Rd5 {[%clk
0:01:24.9]} 28. c4 {[%clk 0:00:37.2]} 28... Ra5 {[%clk 0:01:22.6]} 29. Rb7
{[%clk 0:00:32.2]} 29... b5 {[%clk 0:01:12.1]} 30. c5 {[%clk 0:00:32.2]} 30...
b4 {[%clk 0:01:08.3]} 31. c6 {[%clk 0:00:27]} 31... Rc5 {[%clk 0:01:08.9]} 32.
c7 {[%clk 0:00:26.1]} 32... Ke8 {[%clk 0:00:52.9]} 33. g5 {[%clk 0:00:20.5]}
33... f6 {[%clk 0:00:48]} 34. gxf6 {[%clk 0:00:15.5]} 34... exf6 {[%clk
0:00:48.9]} 35. Kf3 {[%clk 0:00:13.2]} 35... f5 {[%clk 0:00:47.9]} 36. Rxb4
{[%clk 0:00:10.3]} 36... Rxc7 {[%clk 0:00:47.9]} 37. Rb6 {[%clk 0:00:11.2]}
37... Rc3+ {[%clk 0:00:47.4]} 38. Kg2 {[%clk 0:00:11]} 38... Kf7 {[%clk
0:00:46.9]} 39. Rxa6 {[%clk 0:00:09.5]} 39... Rxb3 {[%clk 0:00:47.4]} 40. Ra7+
{[%clk 0:00:10.2]} 40... Kg8 {[%clk 0:00:47.6]} 41. Rc7 {[%clk 0:00:05.4]} 41...
Rg3+ {[%clk 0:00:45.4]} 42. Kh2 {[%clk 0:00:05]} 42... Rf3 {[%clk 0:00:46]} 43.
Rc4 {[%clk 0:00:04.8]} 43... Rf2+ {[%clk 0:00:46.3]} 44. Kg1 {[%clk 0:00:04.1]}
44... Ra2 {[%clk 0:00:46.9]} 45. Rc7 {[%clk 0:00:01.9]} 45... Ra4 {[%clk
0:00:47.1]} 46. Rc6 {[%clk 0:00:01.3]} 46... Kg7 {[%clk 0:00:46.5]} 47. Rc7+
{[%clk 0:00:01.8]} 47... Kh6 {[%clk 0:00:46.9]} 0-1